fUSD/lending_fUSD_20260122
["ID","MTS","AMOUNT","RATE_DAILY","PERIOD"]
[403035521,1769093456378,-529.066964,0.00036986,31]
[403035522,1769093456387,-378.117282,0.00036986,31]
[403035523,1769093456396,-529.066964,0.00036986,31]
[403035524,1769093456405,-378.117282,0.00036986,31]
[403035525,1769093456414,-529.066964,0.00036986,31]
[403035526,1769093456423,-378.117282,0.00036986,31]
[403035527,1769093456432,-378.117282,0.00036986,31]
[403035528,1769093456441,-529.066964,0.00036986,31]
[403035529,1769093456453,-529.066964,0.00036986,31]
[403035530,1769093456463,-378.117282,0.00036986,31]
[403035531,1769093456472,-529.066964,0.00036986,31]
[403035532,1769093456481,-378.117282,0.00036986,31]
[403035533,1769093456492,-529.066964,0.00036986,31]
[403035534,1769093456501,-378.117282,0.00036986,31]
[403035535,1769093456510,-378.117282,0.00036986,31]
[403035536,1769093456519,-378.117282,0.00036986,31]
[403035537,1769093456529,-529.066964,0.00036986,31]
[403035538,1769093456538,-529.066964,0.00036986,31]
[403035539,1769093456548,-378.117282,0.00036986,31]
[403035540,1769093456557,-529.066964,0.00036986,31]
[403035541,1769093456566,-378.117282,0.00036986,31]
[403035542,1769093456575,-529.066964,0.00036986,31]
[403035543,1769093456584,-378.117282,0.00036986,31]
[403035544,1769093456593,-529.066964,0.00036986,31]
[403035545,1769093456602,-529.066968,0.00036986,31]
[403035546,1769093456611,-378.117282,0.00036986,31]
[403035547,1769093456691,-378.117282,0.00036986,31]
[403035548,1769093456701,-378.117282,0.00036986,31]
[403035549,1769093456711,-378.117275,0.00036986,31]
[403035550,1769093456720,-315.010891,0.00036986,31]
[403035551,1769093456730,-315.010891,0.00036986,31]
[403035552,1769093456739,-315.010891,0.00036986,31]
[403035553,1769093456748,-151.0,0.00036986,31]
[403035554,1769093456757,-315.010891,0.00036986,31]
[403035555,1769093456767,-315.010891,0.00036986,31]
[403035556,1769093456777,-151.0,0.00036986,31]
[403035557,1769093456786,-315.010891,0.00036986,31]
[403035558,1769093456795,-154.632626,0.00036986,31]
[403035559,1769093456804,-315.010891,0.00036986,31]
[403035560,1769093456813,-315.010891,0.00036986,31]
[403035561,1769093456823,-315.010891,0.00036986,31]
[403035562,1769093456832,-315.010891,0.00036986,31]
[403035563,1769093456841,-315.010891,0.00036986,31]
[403035564,1769093456851,-315.010891,0.00036986,31]
[403035565,1769093456860,-315.010891,0.00036986,31]
[403035566,1769093456869,-315.010891,0.00036986,31]
[403035567,1769093456878,-315.010891,0.00036986,31]
[403035568,1769093456887,-315.010891,0.00036986,31]
[403035569,1769093456896,-315.010891,0.00036986,31]
[403035570,1769093456905,-315.010891,0.00036986,31]
[403035571,1769093456914,-315.010891,0.00036986,31]
[403035572,1769093456923,-315.010882,0.00036986,31]
[403035573,1769093456932,-151.0,0.00036986,31]
[403035574,1769093456942,-157.321186,0.00036986,31]
[403035575,1769093456951,-380.625374,0.00036986,31]
[403035576,1769093456961,-380.625374,0.00036986,31]
[403035577,1769093456970,-380.625374,0.00036986,31]
[403035578,1769093456980,-380.625374,0.00036986,31]
[403035579,1769093456989,-380.625374,0.00036986,31]
[403035580,1769093456998,-380.625374,0.00036986,31]
[403035581,1769093457007,-156.513052,0.00036986,31]
[403035582,1769093457015,-380.625374,0.00036986,31]
[403035583,1769093457024,-380.625374,0.00036986,31]
[403035584,1769093457034,-615.830369,0.00036986,31]
[403035585,1769093457043,-380.625374,0.00036986,31]
[403035586,1769093457052,-615.830369,0.00036986,31]
[403035587,1769093457061,-615.830369,0.00036986,31]
[403035588,1769093457070,-380.625374,0.00036986,31]
[403035589,1769093457079,-615.830369,0.00036986,31]
[403035590,1769093457088,-380.625374,0.00036986,31]
[403035591,1769093457097,-380.625374,0.00036986,31]
[403035592,1769093457106,-615.830369,0.00036986,31]
[403035593,1769093457115,-380.625374,0.00036986,31]
[403035594,1769093457125,-615.830369,0.00036986,31]
[403035595,1769093457134,-380.625374,0.00036986,31]
[403035596,1769093457144,-615.830369,0.00036986,31]
[403035597,1769093457153,-380.625374,0.00036986,31]
[403035598,1769093457163,-615.830369,0.00036986,31]
[403035599,1769093457172,-380.625374,0.00036986,31]
[403035600,1769093457182,-615.830369,0.00036986,31]
[403035601,1769093457191,-380.625374,0.00036986,31]
[403035602,1769093457200,-380.625374,0.00036986,31]
[403035603,1769093457210,-615.830369,0.00036986,31]
[403035604,1769093457219,-151.0,0.00036986,31]
[403035605,1769093457229,-615.830369,0.00036986,31]
[403035606,1769093457238,-380.625374,0.00036986,31]
[403035607,1769093457246,-615.830369,0.00036986,31]
[403035608,1769093457256,-151.0,0.00036986,31]
[403035609,1769093457265,-380.625367,0.00036986,31]
[403035610,1769093457273,-615.830369,0.00036986,31]
[403035611,1769093457283,-151.0,0.00036986,31]
[403035612,1769093457292,-177.375583,0.00036986,31]
[403035613,1769093457301,-615.830369,0.00036986,31]
[403035614,1769093457310,-151.0,0.00036986,31]
[403035615,1769093457318,-615.830369,0.00036986,31]
[403035616,1769093457327,-151.0,0.00036986,31]
[403035617,1769093457336,-151.0,0.00036986,31]
[403035618,1769093457345,-615.830369,0.00036986,31]
[403035619,1769093457354,-151.0,0.00036986,31]
[403035620,1769093457364,-151.0,0.00036986,31]
[403035621,1769093457373,-1299.096118,0.00036986,31]
[403035622,1769093457382,-615.830369,0.00036986,31]
[403035623,1769093457391,-151.0,0.00036986,31]
[403035624,1769093457401,-154.901985,0.00036986,31]
[403035625,1769093457410,-615.830369,0.00036986,31]
[403035626,1769093457419,-151.0,0.00036986,31]
[403035627,1769093457427,-1299.096118,0.00036986,31]
[403035628,1769093457437,-615.830369,0.00036986,31]
[403035629,1769093457447,-1299.096118,0.00036986,31]
[403035630,1769093457460,-615.830378,0.00036986,31]
[403035631,1769093457469,-151.0,0.00036986,31]
[403035632,1769093457479,-1299.096118,0.00036986,31]
[403035633,1769093457489,-151.0,0.00036986,31]
[403035634,1769093457498,-151.0,0.00036986,31]
[403035635,1769093457507,-155.009088,0.00036986,31]
[403035636,1769093457517,-1299.096118,0.00036986,31]
[403035637,1769093457527,-241.556852,0.00036986,31]
[403035638,1769093457536,-151.0,0.00036986,31]
[403035639,1769093457544,-151.0,0.00036986,31]
[403035640,1769093457554,-1299.096118,0.00036986,31]
[403035641,1769093457563,-151.0,0.00036986,31]
[403035642,1769093457572,-241.556852,0.00036986,31]
[403035643,1769093457582,-241.556852,0.00036986,31]
[403035644,1769093457591,-1299.096118,0.00036986,31]
[403035645,1769093457600,-241.556852,0.00036986,31]
[403035646,1769093457609,-267.128373,0.00036986,31]
[403035647,1769093457618,-151.0,0.00036986,31]
[403035648,1769093457627,-1299.096118,0.00036986,31]
[403035649,1769093457637,-151.0,0.00036986,31]
[403035650,1769093457646,-1299.096118,0.00036986,31]
[403035651,1769093457655,-241.556852,0.00036986,31]
[403035652,1769093457664,-267.128373,0.00036986,31]
[403035653,1769093457673,-1299.096118,0.00036986,31]
[403035654,1769093457682,-1299.096118,0.00036986,31]
[403035655,1769093457692,-241.556852,0.00036986,31]
[403035656,1769093457700,-267.128373,0.00036986,31]
[403035657,1769093457710,-248.273797,0.00036986,31]
[403035658,1769093457719,-241.556852,0.00036986,31]
[403035659,1769093457728,-267.128373,0.00036986,31]
[403035660,1769093457737,-151.0,0.00036986,31]
[403035661,1769093457746,-1299.096118,0.00036986,31]
[403035662,1769093457756,-241.556852,0.00036986,31]
[403035663,1769093457765,-1004.731538,0.00036986,31]
[403035664,1769093457775,-267.128373,0.00036986,31]
[403035665,1769093457783,-1299.096118,0.00036986,31]
[403035666,1769093457792,-241.556852,0.00036986,31]
[403035667,1769093457802,-1004.731538,0.00036986,31]
[403035668,1769093457811,-267.128373,0.00036986,31]
[403035669,1769093457820,-241.556852,0.00036986,31]
[403035670,1769093457830,-656.376688,0.00036986,31]
[403035671,1769093457839,-267.128373,0.00036986,31]
[403035672,1769093457849,-1299.096118,0.00036986,31]
[403035673,1769093457858,-217.5,0.00036986,31]
[403035674,1769093457867,-241.556852,0.00036986,31]
[403035675,1769093457877,-656.376688,0.00036986,31]
[403035676,1769093457886,-1004.731538,0.00036986,31]
[403035677,1769093457895,-1299.096118,0.00036986,31]
[403035678,1769093457905,-241.556852,0.00036986,31]
[403035679,1769093457915,-656.376688,0.00036986,31]
[403035680,1769093457924,-267.128373,0.00036986,31]
[403035681,1769093457933,-1004.731538,0.00036986,31]
[403035682,1769093457942,-241.556852,0.00036986,31]
[403035683,1769093457952,-217.5,0.00036986,31]
[403035684,1769093457963,-1299.096118,0.00036986,31]
[403035685,1769093457976,-241.556852,0.00036986,31]
[403035686,1769093457985,-217.5,0.00036986,31]
[403035687,1769093457994,-656.376688,0.00036986,31]
[403035688,1769093458003,-1004.731538,0.00036986,31]
[403035689,1769093458012,-267.128373,0.00036986,31]
[403035690,1769093458021,-1299.096118,0.00036986,31]
[403035691,1769093458030,-241.556852,0.00036986,31]
[403035692,1769093458039,-217.5,0.00036986,31]
[403035693,1769093458048,-656.376688,0.00036986,31]
[403035694,1769093458057,-267.128373,0.00036986,31]
[403035695,1769093458066,-241.556852,0.00036986,31]
[403035696,1769093458075,-656.376688,0.00036986,31]
[403035697,1769093458084,-267.128373,0.00036986,31]
[403035698,1769093458093,-1004.731538,0.00036986,31]
[403035699,1769093458102,-1299.096118,0.00036986,31]
[403035700,1769093458111,-241.556852,0.00036986,31]
[403035701,1769093458119,-217.5,0.00036986,31]
[403035702,1769093458128,-267.128373,0.00036986,31]
[403035703,1769093458137,-1299.096118,0.00036986,31]
[403035704,1769093458146,-1004.731538,0.00036986,31]
[403035705,1769093458155,-217.5,0.00036986,31]
[403035706,1769093458164,-241.556852,0.00036986,31]
[403035707,1769093458174,-656.376688,0.00036986,31]
[403035708,1769093458183,-267.128373,0.00036986,31]
[403035709,1769093458191,-1299.096112,0.00036986,31]
[403035710,1769093458200,-241.556852,0.00036986,31]
[403035711,1769093458210,-656.376688,0.00036986,31]
[403035712,1769093458219,-267.128373,0.00036986,31]
[403035713,1769093458228,-217.5,0.00036986,31]
[403035714,1769093458237,-241.556853,0.00036986,31]
[403035715,1769093458247,-656.376688,0.00036986,31]
[403035716,1769093458256,-267.128373,0.00036986,31]
[403035717,1769093458266,-656.376688,0.00036986,31]
[403035718,1769093458275,-1004.731538,0.00036986,31]
[403035719,1769093458284,-267.128373,0.00036986,31]
[403035720,1769093458294,-151.0,0.00036986,31]
[403035721,1769093458303,-217.5,0.00036986,31]
[403035722,1769093458312,-656.376688,0.00036986,31]
[403035723,1769093458322,-1004.731538,0.00036986,31]
[403035724,1769093458331,-267.128373,0.00036986,31]
[403035725,1769093458340,-217.5,0.00036986,31]
[403035726,1769093458349,-1004.731538,0.00036986,31]
[403035727,1769093458358,-267.128373,0.00036986,31]
[403035728,1769093458367,-151.0,0.00036986,31]
[403035729,1769093458376,-656.376688,0.00036986,31]
[403035730,1769093458386,-217.5,0.00036986,31]
[403035731,1769093458395,-267.128373,0.00036986,31]
[403035732,1769093458404,-1004.731538,0.00036986,31]
[403035733,1769093458413,-151.0,0.00036986,31]
[403035734,1769093458423,-463.248199,0.00036986,31]
[403035735,1769093458431,-151.0,0.00036986,31]
[403035736,1769093458440,-656.376688,0.00036986,31]
[403035737,1769093458451,-217.5,0.00036986,31]
[403035738,1769093458463,-267.128364,0.00036986,31]
[403035739,1769093458472,-151.0,0.00036986,31]
[403035740,1769093458481,-1004.731538,0.00036986,31]
[403035741,1769093458491,-463.248199,0.00036986,31]
[403035742,1769093458501,-217.5,0.00036986,31]
[403035743,1769093458510,-1004.731538,0.00036986,31]
[403035744,1769093458519,-151.0,0.00036986,31]
[403035745,1769093458529,-217.5,0.00036986,31]
[403035746,1769093458538,-463.248199,0.00036986,31]
[403035747,1769093458547,-151.0,0.00036986,31]
[403035748,1769093458556,-217.5,0.00036986,31]
[403035749,1769093458565,-463.248199,0.00036986,31]
[403035750,1769093458574,-151.0,0.00036986,31]
[403035751,1769093458583,-151.0,0.00036986,31]
[403035752,1769093458592,-1004.731538,0.00036986,31]
[403035753,1769093458601,-217.5,0.00036986,31]
[403035754,1769093458610,-463.248199,0.00036986,31]
[403035755,1769093458619,-151.0,0.00036986,31]
[403035756,1769093458628,-151.0,0.00036986,31]
[403035757,1769093458637,-217.5,0.00036986,31]
[403035758,1769093458646,-463.248199,0.00036986,31]
[403035759,1769093458655,-151.0,0.00036986,31]
[403035760,1769093458664,-217.5,0.00036986,31]
[403035761,1769093458673,-1004.731538,0.00036986,31]
[403035762,1769093458682,-463.248199,0.00036986,31]
[403035763,1769093458691,-151.0,0.00036986,31]
[403035764,1769093458700,-1004.731538,0.00036986,31]
[403035765,1769093458711,-217.5,0.00036986,31]
[403035766,1769093458719,-463.248199,0.00036986,31]
[403035767,1769093458728,-1004.731538,0.00036986,31]
[403035768,1769093458737,-463.248199,0.00036986,31]
[403035769,1769093458746,-217.5,0.00036986,31]
[403035770,1769093458756,-1004.731538,0.00036986,31]
[403035771,1769093458764,-151.0,0.00036986,31]
[403035772,1769093458774,-463.248199,0.00036986,31]
[403035773,1769093458783,-1004.731538,0.00036986,31]
[403035774,1769093458792,-217.5,0.00036986,31]
[403035775,1769093458801,-151.0,0.00036986,31]
[403035776,1769093458810,-1004.73153,0.00036986,31]
[403035777,1769093458819,-463.248199,0.00036986,31]
[403035778,1769093458829,-212.46777891,0.00037,31]
[403035779,1769093458838,-3000.0,0.00037,30]
[403035780,1769093458847,-1005.0,0.00037,30]
[403035781,1769093458856,-1007.0,0.00037,30]
[403035782,1769093458865,-275784.35,0.00037,2]
[403035783,1769093458874,-3272.09504581,0.000372,10]
[403035784,1769093458883,-1800.15037,0.000373,120]
[403035785,1769093458893,-1407.0,0.00037404,2]
[403035786,1769093458902,-1332.0,0.00037404,2]
[403035787,1769093458911,-615.0,0.00037404,2]
[403035788,1769093458919,-3474.0,0.00037404,2]
[403035789,1769093458928,-1268.0,0.00037404,2]
[403035790,1769093458937,-276.0,0.00037404,2]
[403035791,1769093458946,-2441.0,0.00037404,2]
[403035792,1769093458954,-567.0,0.00037404,2]
[403035793,1769093458967,-750.0,0.0003746,5]
[403035794,1769093458975,-275784.35,0.000375,2]
[403035795,1769093458984,-175.73620882,0.00038008,5]
[403035796,1769093458993,-35397.16,0.000381,2]
[403035797,1769093459003,-181.74,0.000383,30]
[403035798,1769093459013,-2101.2,0.0003859,30]
[403035799,1769093459022,-1742.462,0.000387,52]
[403035800,1769093459031,-412.99139695,0.00038848,2]
[403035801,1769093459040,-2004.35365466,0.00038874,2]
[403035802,1769093459050,-1368.1468,0.00038888,30]
[403035803,1769093459059,-209.0,0.0003891,30]
[403035804,1769093459069,-3900.0,0.00039,3]
[403035805,1769093459078,-15675.30944888,0.00039,5]
[403035806,1769093459087,-1829.501447,0.00039,2]
[403035807,1769093459096,-850.64719779,0.00039015,2]
[403035808,1769093459105,-304.29258002,0.00039015,2]
[403035809,1769093459114,-579.60656996,0.00039015,2]
[403035810,1769093459123,-305.467583,0.00039015,2]
[403035811,1769093459132,-300.0,0.00039015,2]
[403035812,1769093459141,-456.09127569,0.00039015,2]
[403035813,1769093459150,-1075.69065222,0.00039015,2]
[403035814,1769093459159,-302.27924024,0.00039015,2]
[403035815,1769093459168,-369.21511102,0.00039015,2]
[403035816,1769093459178,-515.54603305,0.00039015,2]
[403035817,1769093459188,-304.44072025,0.00039015,2]
[403035818,1769093459197,-850.64719779,0.00039015,2]
[403035819,1769093459209,-304.29258002,0.00039015,2]
[403035820,1769093459218,-579.60656996,0.00039015,2]
[403035821,1769093459228,-305.467583,0.00039015,2]
[403035822,1769093459237,-300.0,0.00039015,2]
[403035823,1769093459246,-456.09127569,0.00039015,2]
[403035824,1769093459255,-1075.69065222,0.00039015,2]
[403035825,1769093459265,-369.21511102,0.00039015,2]
[403035826,1769093459275,-515.54603305,0.00039015,2]
[403035827,1769093459284,-304.44072025,0.00039015,2]
[403035828,1769093459293,-850.64719779,0.00039015,2]
[403035829,1769093459303,-304.29258002,0.00039015,2]
[403035830,1769093459312,-305.467583,0.00039015,2]
[403035831,1769093459321,-456.09127569,0.00039015,2]
[403035832,1769093459330,-1075.69065222,0.00039015,2]
[403035833,1769093459339,-369.21511102,0.00039015,2]
[403035834,1769093459349,-515.54603305,0.00039015,2]
[403035835,1769093459358,-304.44072025,0.00039015,2]
[403035836,1769093459367,-850.64719779,0.00039015,2]
[403035837,1769093459376,-304.29258002,0.00039015,2]
[403035838,1769093459386,-305.467583,0.00039015,2]
[403035839,1769093459396,-456.09127569,0.00039015,2]
[403035840,1769093459406,-1075.69065222,0.00039015,2]
[403035841,1769093459416,-369.21511102,0.00039015,2]
[403035842,1769093459425,-515.54603305,0.00039015,2]
[403035843,1769093459434,-304.44072025,0.00039015,2]
[403035844,1769093459445,-850.64719779,0.00039015,2]
[403035845,1769093459457,-304.29258002,0.00039015,2]
[403035846,1769093459466,-305.467583,0.00039015,2]
[403035847,1769093459475,-456.09127569,0.00039015,2]
[403035848,1769093459486,-1075.69065222,0.00039015,2]
[403035849,1769093459495,-369.21511102,0.00039015,2]
[403035850,1769093459504,-515.54603305,0.00039015,2]
[403035851,1769093459513,-304.44072025,0.00039015,2]
[403035852,1769093459524,-850.64719779,0.00039015,2]
[403035853,1769093459533,-304.29258002,0.00039015,2]
[403035854,1769093459542,-305.467583,0.00039015,2]
[403035855,1769093459552,-456.09127569,0.00039015,2]
[403035856,1769093459561,-1075.69065222,0.00039015,2]
[403035857,1769093459570,-369.21511102,0.00039015,2]
[403035858,1769093459579,-515.54603305,0.00039015,2]
[403035859,1769093459588,-304.44072025,0.00039015,2]
[403035860,1769093459597,-850.64719779,0.00039015,2]
[403035861,1769093459607,-304.29258002,0.00039015,2]
[403035862,1769093459616,-305.467583,0.00039015,2]
[403035863,1769093459625,-456.09127569,0.00039015,2]
[403035864,1769093459634,-1075.69065222,0.00039015,2]
[403035865,1769093459644,-369.21511102,0.00039015,2]
[403035866,1769093459653,-515.54603305,0.00039015,2]
[403035867,1769093459662,-304.44072025,0.00039015,2]
[403035868,1769093459672,-850.64719779,0.00039015,2]
[403035869,1769093459682,-304.29258002,0.00039015,2]
[403035870,1769093459693,-305.467583,0.00039015,2]
[403035871,1769093459702,-456.09127569,0.00039015,2]
[403035872,1769093459713,-1075.69065222,0.00039015,2]
[403035873,1769093459722,-369.21511102,0.00039015,2]
[403035874,1769093459732,-515.54603305,0.00039015,2]
[403035875,1769093459741,-304.44072025,0.00039015,2]
[403035876,1769093459751,-850.64719779,0.00039015,2]
[403035877,1769093459760,-304.29258002,0.00039015,2]
[403035878,1769093459770,-305.467583,0.00039015,2]
[403035879,1769093459780,-456.09127569,0.00039015,2]
[403035880,1769093459790,-1075.69065222,0.00039015,2]
[403035881,1769093459799,-369.21511102,0.00039015,2]
[403035882,1769093459808,-515.54603305,0.00039015,2]
[403035883,1769093459817,-304.44072025,0.00039015,2]
[403035884,1769093459826,-850.64719779,0.00039015,2]
[403035885,1769093459835,-305.285085,0.00039015,2]
[403035886,1769093459844,-305.467583,0.00039015,2]
[403035887,1769093459854,-456.09127569,0.00039015,2]
[403035888,1769093459863,-1075.69065222,0.00039015,2]
[403035889,1769093459872,-369.21511102,0.00039015,2]
[403035890,1769093459881,-515.54603305,0.00039015,2]
[403035891,1769093459891,-305.47334731,0.00039015,2]
[403035892,1769093459900,-850.64719779,0.00039015,2]
[403035893,1769093459909,-306.38140736,0.00039015,2]
[403035894,1769093459918,-456.09127569,0.00039015,2]
[403035895,1769093459927,-1075.69065222,0.00039015,2]
[403035896,1769093459936,-369.21511102,0.00039015,2]
[403035897,1769093459946,-515.54603305,0.00039015,2]
[403035898,1769093459955,-1136.44596828,0.00039015,2]
[403035899,1769093459964,-405.15935909,0.00039015,2]
[403035900,1769093459973,-1075.69065222,0.00039015,2]
[403035901,1769093459983,-493.35877104,0.00039015,2]
[403035902,1769093459992,-517.1326415,0.00039015,2]
[403035903,1769093460001,-361.68665702,0.00039015,2]
[403035904,1769093460010,-500.0,0.00039451,14]
[403035905,1769093460019,-500.0,0.00039451,14]
[403035906,1769093460028,-14083.20186411,0.000395,30]
[403035907,1769093461047,-619.00916385,0.00025903,2]
[403035908,1769093461057,-102.07083815,0.00029905,2]
[403035909,1769093461070,-516.9383257,0.00029905,2]
[403035910,1769093461079,-267.7444043,0.0003058,2]
[403035911,1769093461090,-1518.81597667,0.0003058,2]
[403035912,1769093461102,-1898.49530122,0.0003058,2]
[403035913,1769093461120,-610.29615414,0.0003058,2]
[403035914,1769093461132,-662.5079988,0.0003058,2]
[403035915,1769093461166,-2572.62843846,0.0003058,2]
[403035916,1769093461176,-612.32,0.00030857,2]
[403035917,1769093461187,-619.00916385,0.00033906,2]
[403035918,1769093461197,-151.0,0.00036986,31]
[403035919,1769093461209,-463.248199,0.00036986,31]
[403035920,1769093461219,-151.0,0.00036986,31]
[403035921,1769093461229,-463.248199,0.00036986,31]
[403035922,1769093461238,-151.0,0.00036986,31]
[403035923,1769093461248,-463.248199,0.00036986,31]
[403035924,1769093461258,-463.248199,0.00036986,31]
[403035925,1769093461268,-28.22528295,0.00036986,31]
[403035926,1769093461311,-468.0,0.00034694,30]
[403035927,1769093461320,-435.02291605,0.00036986,31]
[403035928,1769093461330,-463.248199,0.00036986,31]
[403035929,1769093461340,-463.248199,0.00036986,31]
[403035930,1769093461349,-463.248199,0.00036986,31]
[403035931,1769093461358,-463.248203,0.00036986,31]
[403035932,1769093461368,-619.00916385,0.00037908,2]
[403035933,1769093461377,-18678.1715887,0.000395,30]
[403035934,1769093461389,-2635.78654719,0.000395,30]
[403035935,1769093461398,-155.0,0.00039616,2]
[403035936,1769093461408,-150.33,0.00039726,120]
[403035937,1769093461417,-200.0,0.00039777,6]
[403035938,1769093461426,-200.0,0.00039851,6]
[403035939,1769093461436,-200.0,0.00039851,6]
[403035940,1769093461448,-200.0,0.00039851,6]
[403035941,1769093461462,-200.0,0.00039851,6]
[403035942,1769093461471,-200.0,0.00039851,6]
[403035943,1769093461482,-200.0,0.00039851,6]
[403035944,1769093461492,-200.0,0.00039852,6]
[403035945,1769093461502,-200.0,0.00039853,6]
[403035946,1769093461511,-1684.75450612,0.0003988,120]
[403035947,1769093461522,-166.92,0.0004,14]
[403035948,1769093461531,-200.0,0.0004,120]
[403035949,1769093461541,-160.0,0.0004,120]
[403035950,1769093461551,-269.71939449,0.0004,120]
[403035951,1769093461560,-35578.48695309,0.0004,60]
[403035952,1769093461622,-1009.42804069,0.0004,60]
[403035955,1769093528554,-484.8473,0.00015022,2]
[403035956,1769093528578,-168.15643284,0.0001512,2]
[403035957,1769093531404,-20.8804207,0.0001512,2]
[403035958,1769093531426,-208.68743832,0.00015121,2]
[403035959,1769093533438,-151.63403555,0.00015121,2]
[403035961,1769093534828,-139.67852613,0.00015121,2]
[403035962,1769093534852,-104.82030525,0.00015121,2]
[403035963,1769093555424,-192.65342535,0.00015121,2]
[403035964,1769093557315,-27.79567788,0.00015121,2]
[403035965,1769093557338,-293.23058509,0.00015121,2]
[403035966,1769093560583,-48.55044965,0.00015121,2]
[403035967,1769093560607,-191.79568348,0.00015121,2]
[403035968,1769093562008,-178.70738696,0.00015121,2]
[403035969,1769093562031,-43.89257832,0.00015121,2]
[403035970,1769093563451,-290.59655894,0.00015121,2]
[403035971,1769093569741,-302.0,0.00015025,2]
[403035972,1769093572408,-198.0,0.00015025,2]
[403035973,1769093572437,-71.85609689,0.00015025,2]
[403035974,1769093576151,-245.95516537,0.00015025,2]
[403035975,1769093578222,-168.59545555,0.00015025,2]
[403035976,1769093580289,-13.59328219,0.00015025,2]
[403035977,1769093580334,-183.55068457,0.00015025,2]
[403035978,1769093583123,-244.73424043,0.00015025,2]
[403035979,1769093585155,-71.715075,0.00015025,2]
[403035980,1769093585185,-219.9643608,0.00015025,2]
[403035981,1769093586754,-196.5894186,0.00015025,2]
[403035982,1769093589795,-83.4462206,0.00015025,2]
[403035983,1769093589826,-165.00327509,0.00015025,2]
[403035984,1769093591852,-264.38189314,0.00015025,2]
[403035985,1769093593451,-70.61483177,0.00015025,2]
[403035986,1769093593481,-89.95534018,0.00015025,2]
[403035987,1769093597768,-287.98105866,0.00015025,2]
[403035989,1769093599304,-122.06360116,0.00015025,2]
[403035990,1769093599336,-104.21153501,0.00015025,2]
[403035991,1769093602476,-282.54846081,0.00015025,2]
[403035992,1769093605144,-113.24000418,0.00015025,2]
[403035993,1769093605182,-65.56568099,0.00015025,2]
[403035994,1769093615102,-211.8076578,0.00015025,2]
[403035995,1769093620485,-160.67259209,0.00015025,2]
[403035996,1769093622915,-61.95406912,0.00015025,2]
[403035997,1769093622944,-192.88371431,0.00015025,2]
[403035998,1769093625635,-202.34013256,0.00015025,2]
[403035999,1769093628114,-104.77615313,0.00015025,2]
[403036000,1769093628145,-186.79329814,0.00015025,2]
[403036001,1769093632608,-200.95907073,0.00015025,2]
[403036002,1769093635341,-112.24763113,0.00015025,2]
[403036003,1769093635368,-173.91291442,0.00015025,2]
[403036004,1769093635393,-14.85390907,0.00015025,2]
[403036005,1769093636976,-211.005736,0.00015025,2]
[403036006,1769093639561,-274.14035493,0.00015025,2]
[403036007,1769093639591,-91.09921833,0.00015025,2]
[403036008,1769093643142,-300.0,0.00015024,2]
[403036009,1769093643166,-100.22428166,0.00015024,2]
[403036010,1769093647514,-199.77571834,0.00015024,2]
[403036011,1769093647546,-131.84679128,0.00015025,2]
[403036012,1769093649059,-166.70326818,0.00015025,2]
[403036013,1769093650516,-110.35072221,0.00015025,2]
[403036014,1769093650544,-120.63978774,0.00015025,2]
[403036015,1769093652741,-278.91626884,0.00015025,2]
[403036016,1769093654901,-100.44394342,0.00015025,2]
[403036017,1769093654929,-241.82739376,0.00015025,2]
[403036018,1769093656966,-258.17260624,0.00015025,2]
[403036019,1769093656994,-38.26980722,0.00015025,2]
[403036020,1769093657636,150.0,1e-05,2]
[403036021,1769093658380,-327.37123182,0.00015025,2]
[403036022,1769093663271,-134.35896096,0.00015025,2]
[403036023,1769093663300,-116.98312994,0.00015025,2]
[403036024,1769093664724,-283.06871674,0.00015025,2]